Workbook

Sheet Таблица пантонов
A1: В данной таблице представлены цвета Pantone с раскладкой по RGB и HEX. Просим Вас учесть тот факт, что отображение цветов на экране может немного отклоняться от фактических цветов. Это связано с тем, что каждый монитор в зависимости от настроек передает изображение по своему.
C2: R | D2: G | E2: B | G2: Цветов
A3: Выберете цвет | C3: 255 | D3: 255 | E3: 0 | G3: 5
A5: Pantone | B5: Colour | C5: R | D5: G | E5: B | F5: Кв.Откл. | G5: Ранг
A6: Yellow | C6: 247 | D6: 224 | E6: 23 | F6: =SUMXMY2(C6:E6,C$3:E$3) -> 1554 | G6: =RANK(F6,$F$6:$F$1348,1) -> 6
A7: Yellow 012 | C7: 247 | D7: 217 | E7: 23 | F7: =SUMXMY2(C7:E7,C$3:E$3) -> 2037 | G7: =RANK(F7,$F$6:$F$1348,1) -> 14
A8: Orange 021 | C8: 237 | D8: 110 | E8: 0 | F8: 21349 | G8: 137
A9: Warm Red | C9: 245 | D9: 64 | E9: 41 | F9: 38262 | G9: 355
A10: Red 032 | C10: 237 | D10: 46 | E10: 56 | F10: 47141 | G10: 578
A11: Rubine Red | C11: 207 | D11: 3 | E11: 92 | F11: 74272 | G11: 1002
A12: Rhodamine Red | C12: 230 | D12: 0 | E12: 148 | F12: 87554 | G12: 1105
A13: Purple | C13: 186 | D13: 31 | E13: 181 | F13: 87698 | G13: 1107
A14: Violet | C14: 102 | D14: 0 | E14: 161 | F14: 114355 | G14: 1283
A15: Blue 072 | C15: 41 | D15: 5 | E15: 161 | F15: 134217 | G15: 1341
A16: Reflex Blue | C16: 23 | D16: 23 | E16: 150 | F16: 130148 | G16: 1336
A17: Process Blue | C17: 0 | D17: 140 | E17: 204 | F17: 119866 | G17: 1313
A18: Green | C18: 0 | D18: 179 | E18: 148 | F18: 92705 | G18: 1155
A19: Black | C19: 51 | D19: 43 | E19: 36 | F19: 87856 | G19: 1110
A20: Process Yellow | C20: 245 | D20: 230 | E20: 23 | F20: 1254 | G20: 3
A21: Process Magenta | C21: 214 | D21: 0 | E21: 110 | F21: 78806 | G21: 1039
A22: Process Cyan | C22: 0 | D22: 166 | E22: 214 | F22: 118742 | G22: 1308
A23: Process Black | C23: 43 | D23: 41 | E23: 38 | F23: 92184 | G23: 1149
A24: Hexachrome Yellow | C24: 250 | D24: 224 | E24: 23 | F24: 1515 | G24: 5
A25: Hexachrome Orange | C25: 245 | D25: 125 | E25: 0 | F25: 17000 | G25: 100
A26: Hexachrome Magenta | C26: 222 | D26: 0 | E26: 130 | F26: 83014 | G26: 1071
A27: Hexachrome Cyan | C27: 0 | D27: 145 | E27: 204 | F27: 118741 | G27: 1307
A28: Hexachrome Green | C28: 0 | D28: 171 | E28: 89 | F28: 80002 | G28: 1050
A29: Hexachrome Black | C29: 33 | D29: 33 | E29: 33 | F29: 99657 | G29: 1205
A30: 100 | C30: 242 | D30: 237 | E30: 130 | F30: 17393 | G30: 105
A31: 101 | C31: 245 | D31: 237 | E31: 89 | F31: 8345 | G31: 52
A32: 102 | C32: 245 | D32: 232 | E32: 20 | F32: 1029 | G32: 1
A33: Yellow | C33: 247 | D33: 224 | E33: 23 | F33: 1554 | G33: 6
A34: 103 | C34: 196 | D34: 173 | E34: 15 | F34: 10430 | G34: 65
A35: 104 | C35: 168 | D35: 150 | E35: 10 | F35: 18694 | G35: 110
A36: 105 | C36: 128 | D36: 115 | E36: 15 | F36: 35954 | G36: 311
A37: 106 | C37: 245 | D37: 232 | E37: 92 | F37: 9093 | G37: 57
A38: 107 | C38: 245 | D38: 227 | E38: 38 | F38: 2328 | G38: 15
A39: 108 | C39: 247 | D39: 219 | E39: 23 | F39: 1889 | G39: 10
A40: 109 | C40: 247 | D40: 212 | E40: 23 | F40: 2442 | G40: 18
A41: 110 | C41: 212 | D41: 176 | E41: 18 | F41: 8414 | G41: 54
A42: 111 | C42: 168 | D42: 143 | E42: 10 | F42: 20213 | G42: 125
A43: 112 | C43: 148 | D43: 130 | E43: 10 | F43: 27174 | G43: 195
A44: 113 | C44: 247 | D44: 227 | E44: 84 | F44: 7904 | G44: 49
A45: 114 | C45: 247 | D45: 227 | E45: 74 | F45: 6324 | G45: 40
A46: 115 | C46: 250 | D46: 224 | E46: 66 | F46: 5342 | G46: 30
A47: 116 | C47: 247 | D47: 209 | E47: 23 | F47: 2709 | G47: 20
A48: 117 | C48: 196 | D48: 158 | E48: 13 | F48: 13059 | G48: 73
A49: 118 | C49: 171 | D49: 140 | E49: 10 | F49: 20381 | G49: 127
A50: 119 | C50: 135 | D50: 117 | E50: 20 | F50: 33844 | G50: 283
A51: 120 | C51: 250 | D51: 224 | E51: 115 | F51: 14211 | G51: 80
A52: 121 | C52: 250 | D52: 222 | E52: 105 | F52: 12139 | G52: 68
A53: 122 | C53: 252 | D53: 214 | E53: 71 | F53: 6731 | G53: 45
A54: 123 | C54: 252 | D54: 201 | E54: 23 | F54: 3454 | G54: 21
A55: 124 | C55: 224 | D55: 173 | E55: 18 | F55: 8009 | G55: 50
A56: 125 | C56: 179 | D56: 140 | E56: 10 | F56: 19101 | G56: 114
A57: 126 | C57: 158 | D57: 125 | E57: 10 | F57: 26409 | G57: 183
A58: 1205 | C58: 245 | D58: 227 | E58: 158 | F58: 25848 | G58: 181
A59: 1215 | C59: 245 | D59: 222 | E59: 140 | F59: 20789 | G59: 131
A60: 1225 | C60: 250 | D60: 201 | E60: 61 | F60: 6662 | G60: 43
A61: 1235 | C61: 247 | D61: 181 | E61: 18 | F61: 5864 | G61: 34
A62: 1245 | C62: 191 | D62: 148 | E62: 13 | F62: 15714 | G62: 91
A63: 1255 | C63: 166 | D63: 130 | E63: 0 | F63: 23546 | G63: 152
A64: 1265 | C64: 130 | D64: 102 | E64: 13 | F64: 39203 | G64: 374
A65: 127 | C65: 240 | D65: 224 | E65: 125 | F65: 16811 | G65: 98
A66: 128 | C66: 237 | D66: 217 | E66: 89 | F66: 9689 | G66: 62
A67: 129 | C67: 237 | D67: 207 | E67: 61 | F67: 6349 | G67: 41
A68: 130 | C68: 230 | D68: 176 | E68: 18 | F68: 7190 | G68: 47
A69: 131 | C69: 199 | D69: 148 | E69: 13 | F69: 14754 | G69: 84
A70: 132 | C70: 161 | D70: 125 | E70: 10 | F70: 25836 | G70: 180
A71: 133 | C71: 112 | D71: 89 | E71: 15 | F71: =SUMXMY2(C71:E71,C$3:E$3) -> 48230 | G71: =RANK(F71,$F$6:$F$1348,1) -> 597
A72: 134 | C72: 247 | D72: 214 | E72: 125 | F72: 17370 | G72: 104
A73: 135 | C73: 252 | D73: 201 | E73: 84 | F73: 9981 | G73: 63
A74: 136 | C74: 252 | D74: 189 | E74: 48 | F74: 6669 | G74: 44
A75: 137 | C75: 247 | D75: 163 | E75: 10 | F75: 8628 | G75: 56
A76: 138 | C76: 212 | D76: 133 | E76: 0 | F76: 16733 | G76: 97
A77: 139 | C77: 171 | D77: 115 | E77: 5 | F77: 26681 | G77: 186
A78: 140 | C78: 120 | D78: 87 | E78: 10 | F78: 46549 | G78: 556
A79: 1345 | C79: 250 | D79: 209 | E79: 133 | F79: 19830 | G79: 121
A80: 1355 | C80: 252 | D80: 201 | E80: 117 | F80: 16614 | G80: 96
A81: 1365 | C81: 252 | D81: 184 | E81: 82 | F81: 11774 | G81: 66
A82: 1375 | C82: 250 | D82: 158 | E82: 13 | F82: 9603 | G82: 60
A83: 1385 | C83: 201 | D83: 122 | E83: 0 | F83: 20605 | G83: 129
A84: 1395 | C84: 153 | D84: 99 | E84: 8 | F84: 34804 | G84: 297
A85: 1405 | C85: 107 | D85: 71 | E85: 15 | F85: 55985 | G85: 795
A86: 141 | C86: 237 | D86: 204 | E86: 151 | F86: 25726 | G86: 178
A87: 142 | C87: 237 | D87: 189 | E87: 61 | F87: 8401 | G87: 53
A88: 143 | C88: 235 | D88: 173 | E88: 20 | F88: 7524 | G88: 48
A89: 144 | C89: 222 | D89: 135 | E89: 3 | F89: 15498 | G89: 88
A90: 145 | C90: 194 | D90: 125 | E90: 5 | F90: 20646 | G90: 130
A91: 146 | C91: 150 | D91: 99 | E91: 5 | F91: 35386 | G91: 302
A92: 147 | C92: 112 | D92: 89 | E92: 28 | F92: 48789 | G92: 609
A93: 148 | C93: 252 | D93: 209 | E93: 148 | F93: 24029 | G93: 160
A94: 149 | C94: 255 | D94: 199 | E94: 130 | F94: 20036 | G94: 123
A95: 150 | C95: 252 | D95: 171 | E95: 79 | F95: 13306 | G95: 75
A96: 151 | C96: 242 | D96: 125 | E96: 0 | F96: 17069 | G96: 101
A97: 152 | C97: 217 | D97: 115 | E97: 0 | F97: 21044 | G97: 135
A98: 153 | C98: 184 | D98: 105 | E98: 5 | F98: 27566 | G98: 200
A99: 154 | C99: 150 | D99: 87 | E99: 0 | F99: 39249 | G99: 376
A100: 1485 | C100: 252 | D100: 181 | E100: 122 | F100: 20369 | G100: 126
A101: 1495 | C101: 255 | D101: 153 | E101: 59 | F101: 13885 | G101: 79
A102: 1505 | C102: 242 | D102: 128 | E102: 0 | F102: 16298 | G102: 93
A103: Orange 021 | C103: 237 | D103: 110 | E103: 0 | F103: 21349 | G103: 137
A104: 1525 | C104: 186 | D104: 87 | E104: 0 | F104: 32985 | G104: 270
A105: 1535 | C105: 140 | D105: 68 | E105: 0 | F105: 48194 | G105: 595
A106: 1545 | C106: 79 | D106: 38 | E106: 8 | F106: 78129 | G106: 1034
A107: 155 | C107: 240 | D107: 214 | E107: 168 | F107: 30130 | G107: 237
A108: 156 | C108: 237 | D108: 194 | E108: 130 | F108: 20945 | G108: 133
A109: 157 | C109: 232 | D109: 158 | E109: 71 | F109: 14979 | G109: 85
A110: 158 | C110: 222 | D110: 112 | E110: 8 | F110: 21602 | G110: 140
A111: 159 | C111: 194 | D111: 94 | E111: 3 | F111: 29651 | G111: 231
A112: 160 | C112: 158 | D112: 82 | E112: 5 | F112: 39363 | G112: 379
A113: 161 | C113: 94 | D113: 56 | E113: 18 | F113: 65846 | G113: 923
A114: 1555 | C114: 250 | D114: 191 | E114: 158 | F114: 29085 | G114: 224
A115: 1565 | C115: 250 | D115: 168 | E115: 120 | F115: 21994 | G115: 144
A116: 1575 | C116: 250 | D116: 135 | E116: 61 | F116: 18146 | G116: 107
A117: 1585 | C117: 245 | D117: 112 | E117: 0 | F117: 20549 | G117: 128
A118: 1595 | C118: 209 | D118: 97 | E118: 3 | F118: 27089 | G118: 193
A119: 1605 | C119: 158 | D119: 77 | E119: 10 | F119: 41193 | G119: 420
A120: 1615 | C120: 130 | D120: 61 | E120: 10 | F120: 53361 | G120: 728
A121: 162 | C121: 255 | D121: 194 | E121: 163 | F121: 30290 | G121: 239
A122: 163 | C122: 250 | D122: 156 | E122: 110 | F122: 21926 | G122: 143
A123: 164 | C123: 250 | D123: 128 | E123: 61 | F123: 19875 | G123: 122
A124: 165 | C124: 245 | D124: 102 | E124: 0 | F124: 23509 | G124: 151
A125: 166 | C125: 217 | D125: 89 | E125: 0 | F125: 29000 | G125: 222
A126: 167 | C126: 186 | D126: 82 | E126: 5 | F126: 34715 | G126: 294
A127: 168 | C127: 107 | D127: 48 | E127: 13 | F127: 64922 | G127: 911
A128: 1625 | C128: 250 | D128: 163 | E128: 135 | F128: 26714 | G128: 188
A129: 1635 | C129: 250 | D129: 143 | E129: 107 | F129: 24018 | G129: 159
A130: 1645 | C130: 250 | D130: 110 | E130: 54 | F130: 23966 | G130: 158
A131: 1655 | C131: 242 | D131: 89 | E131: 0 | F131: 27725 | G131: 204
A132: 1665 | C132: 217 | D132: 79 | E132: 0 | F132: 32420 | G132: 262
A133: 1675 | C133: 163 | D133: 61 | E133: 5 | F133: 46125 | G133: 545
A134: 1685 | C134: 133 | D134: 54 | E134: 15 | F134: 55510 | G134: 784
A135: 169 | C135: 250 | D135: 181 | E135: 171 | F135: =SUMXMY2(C135:E135,C$3:E$3) -> 34742 | G135: =RANK(F135,$F$6:$F$1348,1) -> 296
A136: 170 | C136: 250 | D136: 138 | E136: 117 | F136: 27403 | G136: 197
A137: 171 | C137: 250 | D137: 99 | E137: 59 | F137: 27842 | G137: 206
A138: 172 | C138: 242 | D138: 79 | E138: 0 | F138: 31145 | G138: 248
A139: 173 | C139: 212 | D139: 71 | E139: 15 | F139: 35930 | G139: 310
A140: 174 | C140: 150 | D140: 51 | E140: 15 | F140: 52866 | G140: 716
A141: 175 | C141: 112 | D141: 51 | E141: 31 | F141: 63026 | G141: 890
A142: 176 | C142: 250 | D142: 171 | E142: 176 | F142: 38057 | G142: 350
A143: 177 | C143: 250 | D143: 128 | E143: 133 | F143: 33843 | G143: 282
A144: 178 | C144: 250 | D144: 92 | E144: 89 | F144: 34515 | G144: 292
A145: Warm Red | C145: 245 | D145: 64 | E145: 41 | F145: 38262 | G145: 355
A146: 179 | C146: 222 | D146: 59 | E146: 33 | F146: 40594 | G146: 401
A147: 180 | C147: 189 | D147: 56 | E147: 38 | F147: 45401 | G147: 533
A148: 181 | C148: 120 | D148: 41 | E148: 28 | F148: 64805 | G148: 909
A149: 1765 | C149: 250 | D149: 156 | E149: 166 | F149: 37382 | G149: 333
A150: 1775 | C150: 250 | D150: 130 | E150: 143 | F150: 36099 | G150: 314
A151: 1785 | C151: 247 | D151: 69 | E151: 82 | F151: 41384 | G151: 424
A152: 1788 | C152: 235 | D152: 38 | E152: 41 | F152: 49170 | G152: 619
A153: 1795 | C153: 209 | D153: 36 | E153: 33 | F153: 51166 | G153: 674
A154: 1805 | C154: 173 | D154: 38 | E154: 36 | F154: 55109 | G154: 774
A155: 1815 | C155: 120 | D155: 31 | E155: 28 | F155: 69185 | G155: 958
A156: 1767 | C156: 252 | D156: 176 | E156: 186 | F156: 40846 | G156: 413
A157: 1777 | C157: 250 | D157: 99 | E157: 120 | F157: 38761 | G157: 367
A158: 1787 | C158: 245 | D158: 66 | E158: 87 | F158: 43390 | G158: 475
A159: Red 032 | C159: 237 | D159: 46 | E159: 56 | F159: 47141 | G159: 578
A160: 1797 | C160: 204 | D160: 41 | E160: 43 | F160: 50246 | G160: 646
A161: 1807 | C161: 158 | D161: 41 | E161: 43 | F161: 57054 | G161: 823
A162: 1817 | C162: 92 | D162: 38 | E162: 36 | F162: 74954 | G162: 1009
A163: 182 | C163: 252 | D163: 184 | E163: 196 | F163: 43466 | G163: 480
A164: 183 | C164: 252 | D164: 140 | E164: 161 | F164: 39155 | G164: 373
A165: 184 | C165: 247 | D165: 92 | E165: 117 | F165: 40322 | G165: 396
A166: 185 | C166: 230 | D166: 13 | E166: 46 | F166: 61305 | G166: 874
A167: 186 | C167: 207 | D167: 20 | E167: 43 | F167: 59378 | G167: 852
A168: 187 | C168: 176 | D168: 28 | E168: 46 | F168: 59886 | G168: 859
A169: 188 | C169: 125 | D169: 33 | E169: 43 | F169: 68033 | G169: 948
A170: 189 | C170: 250 | D170: 161 | E170: 181 | F170: 41622 | G170: 429
A171: 190 | C171: 247 | D171: 117 | E171: 148 | F171: 41012 | G171: 415
A172: 191 | C172: 240 | D172: 61 | E172: 105 | F172: 48886 | G172: 612
A173: 192 | C173: 227 | D173: 13 | E173: 64 | F173: 63444 | G173: 896
A174: 193 | C174: 191 | D174: 18 | E174: 56 | F174: 63401 | G174: 893
A175: 194 | C175: 153 | D175: 31 | E175: 54 | F175: 63496 | G175: 898
A176: 195 | C176: 117 | D176: 41 | E176: 54 | F176: 67756 | G176: 944
A177: 1895 | C177: 250 | D177: 189 | E177: 204 | F177: 45997 | G177: 543
A178: 1905 | C178: 247 | D178: 153 | E178: 181 | F178: 43229 | G178: 468
A179: 1915 | C179: 242 | D179: 84 | E179: 130 | F179: 46310 | G179: 548
A180: 1925 | C180: 224 | D180: 0 | E180: 71 | F180: 71027 | G180: 975
A181: 1935 | C181: 199 | D181: 5 | E181: 64 | F181: 69732 | G181: 963
A182: 1945 | C182: 166 | D182: 15 | E182: 56 | F182: 68657 | G182: 954
A183: 1955 | C183: 143 | D183: 23 | E183: 54 | F183: 69284 | G183: 959
A184: 196 | C184: 240 | D184: 199 | E184: 201 | F184: 43762 | G184: 493
A185: 197 | C185: 235 | D185: 156 | E185: 168 | F185: 38425 | G185: 360
A186: 198 | C186: 224 | D186: 79 | E186: 102 | F186: 42341 | G186: 448
A187: 199 | C187: 214 | D187: 28 | E187: 56 | F187: 56346 | G187: 809
A188: 200 | C188: 186 | D188: 18 | E188: 43 | F188: 62779 | G188: 887
A189: 201 | C189: 156 | D189: 31 | E189: 46 | F189: 62093 | G189: 882
A190: 202 | C190: 135 | D190: 33 | E190: 46 | F190: 65800 | G190: 922
A191: 203 | C191: 237 | D191: 171 | E191: 194 | F191: 45016 | G191: 526
A192: 204 | C192: 232 | D192: 122 | E192: 163 | F192: 44787 | G192: 521
A193: 205 | C193: 224 | D193: 69 | E193: 122 | F193: 50441 | G193: 656
A194: 206 | C194: 207 | D194: 5 | E194: 69 | F194: 69565 | G194: 961
A195: 207 | C195: 173 | D195: 3 | E195: 59 | F195: 73709 | G195: 994
A196: 208 | C196: 143 | D196: 33 | E196: 64 | F196: 65924 | G196: 924
A197: 209 | C197: 117 | D197: 38 | E197: 59 | F197: 69614 | G197: 962
A198: 210 | C198: 255 | D198: 158 | E198: 194 | F198: 47045 | G198: 573
A199: 211 | C199: 252 | D199: 122 | E199: 176 | F199: =SUMXMY2(C199:E199,C$3:E$3) -> 48674 | G199: =RANK(F199,$F$6:$F$1348,1) -> 607
A200: 212 | C200: 245 | D200: 74 | E200: 145 | F200: 53886 | G200: 742
A201: 213 | C201: 230 | D201: 8 | E201: 110 | F201: 73734 | G201: 995
... 1147 more rows
